[Event "Titled Tuesday Blitz August 15 Early 2023"]
[White "Rietze, Clemens, Dr."]
[Black "D`Arruda, Ricardo D."]
[WhiteFideId "24620351"]
[BlackFideId "100692"]
[WhiteElo "2396"]
[BlackElo "2544"]
[Result "0-1"]
[Round "7"]
[TimeControl "180+1"]
[Date "2023.08.15"]
[WhiteClock "0:00:16"]
[BlackClock "0:00:51"]
[Board "103"]

1. d4 {[%clk 0:03:00]}  Nf6 {[%clk 0:02:57]} 2. c4 {[%clk 0:03:00]}  e5 {[%clk 0:02:56]} 3. dxe5 {[%clk 0:03:01]}  Ne4 {[%clk 0:02:56]} 4. a3 {[%clk 0:02:52]}  Nc6 {[%clk 0:02:56]} 5. Nf3 {[%clk 0:02:50]}  d6 {[%clk 0:02:54]} 6. Qc2 {[%clk 0:02:49]}  d5 {[%clk 0:02:53]} 7. cxd5 {[%clk 0:02:46]}  Qxd5 {[%clk 0:02:54]} 8. e3 {[%clk 0:02:46]}  Be6 {[%clk 0:02:50]} 9. Be2 {[%clk 0:02:30]}  O-O-O {[%clk 0:02:46]} 10. Nc3 {[%clk 0:02:22]}  Nxc3 {[%clk 0:02:42]} 11. Qxc3 {[%clk 0:02:22]}  Be7 {[%clk 0:02:39]} 12. O-O {[%clk 0:02:20]}  h6 {[%clk 0:02:37]} 13. b4 {[%clk 0:02:17]}  a6 {[%clk 0:02:33]} 14. Bb2 {[%clk 0:02:15]}  Qb3 {[%clk 0:02:28]} 15. b5 {[%clk 0:01:55]}  Qxc3 {[%clk 0:02:24]} 16. Bxc3 {[%clk 0:01:55]}  axb5 {[%clk 0:02:25]} 17. Bxb5 {[%clk 0:01:56]}  Bd5 {[%clk 0:02:20]} 18. Rfc1 {[%clk 0:01:50]}  b6 {[%clk 0:02:00]} 19. Nd4 {[%clk 0:01:33]}  Nxe5 {[%clk 0:01:49]} 20. Nf5 {[%clk 0:01:32]}  Bf6 {[%clk 0:01:49]} 21. f4 {[%clk 0:01:26]}  Ng4 {[%clk 0:01:45]} 22. h3 {[%clk 0:01:17]}  Bxc3 {[%clk 0:01:37]} 23. Rxc3 {[%clk 0:01:16]}  Nf6 {[%clk 0:01:35]} 24. Rac1 {[%clk 0:01:12]}  c5 {[%clk 0:01:34]} 25. g4 {[%clk 0:01:04]}  g6 {[%clk 0:01:30]} 26. Ne7+ {[%clk 0:01:00]}  Kb7 {[%clk 0:01:30]} 27. Nxd5 {[%clk 0:00:57]}  Rxd5 {[%clk 0:01:29]} 28. Bc4 {[%clk 0:00:51]}  Rd7 {[%clk 0:01:28]} 29. Rd3 {[%clk 0:00:45]}  Rhd8 {[%clk 0:01:26]} 30. Rcd1 {[%clk 0:00:44]}  Rxd3 {[%clk 0:01:23]} 31. Rxd3 {[%clk 0:00:36]}  Rxd3 {[%clk 0:01:23]} 32. Bxd3 {[%clk 0:00:37]}  Kc6 {[%clk 0:01:22]} 33. a4 {[%clk 0:00:36]}  Kd5 {[%clk 0:01:21]} 34. Kf2 {[%clk 0:00:35]}  c4 {[%clk 0:01:21]} 35. Bc2 {[%clk 0:00:34]}  g5 {[%clk 0:01:09]} 36. Kf3 {[%clk 0:00:33]}  Kc5 {[%clk 0:01:05]} 37. f5 {[%clk 0:00:26]}  c3 {[%clk 0:01:02]} 38. e4 {[%clk 0:00:25]}  Kd4 {[%clk 0:01:01]} 39. Bb3 {[%clk 0:00:20]}  Nd7 {[%clk 0:01:01]} 40. Bc2 {[%clk 0:00:18]}  Nc5 {[%clk 0:00:51]} 41. Bb1 {[%clk 0:00:16]} 0-1


[Site "https://www.chess.com"]

[Event "Titled Tuesday Blitz August 15 Early 2023"]
[White "Vasques, Antonio Pedro Freixial"]
[Black "Ansh M Shah"]
[WhiteFideId "1908332"]
[BlackFideId "25033379"]
[WhiteElo "2367"]
[BlackElo "2522"]
[Result "0-1"]
[Round "7"]
[TimeControl "180+1"]
[Date "2023.08.15"]
[WhiteClock "0:02:48"]
[BlackClock "0:02:50"]
[Board "108"]

1. e4 {[%clk 0:02:56]}  c6 {[%clk 0:02:59]} 2. d3 {[%clk 0:02:53]}  d5 {[%clk 0:02:59]} 3. Nd2 {[%clk 0:02:54]}  e5 {[%clk 0:02:58]} 4. Ngf3 {[%clk 0:02:53]}  Bd6 {[%clk 0:02:58]} 5. a4 {[%clk 0:02:53]}  Nf6 {[%clk 0:02:59]} 6. g3 {[%clk 0:02:50]}  O-O {[%clk 0:02:59]} 7. Bg2 {[%clk 0:02:51]}  Re8 {[%clk 0:02:58]} 8. O-O {[%clk 0:02:51]}  Bg4 {[%clk 0:02:58]} 9. c3 {[%clk 0:02:51]}  Nbd7 {[%clk 0:02:58]} 10. b4 {[%clk 0:02:49]}  a5 {[%clk 0:02:57]} 11. Qb3 {[%clk 0:02:48]}  axb4 {[%clk 0:02:54]} 12. Qxb4 {[%clk 0:02:47]}  Bxb4 {[%clk 0:02:50]} 13. cxb4 {[%clk 0:02:48]} 0-1


[Site "https://www.chess.com"]

[Event "Titled Tuesday Blitz August 15 Early 2023"]
[White "Camilla_Lee"]
[Black "Bashirli, Saadat"]
[BlackFideId "13429990"]
[WhiteElo "2520"]
[BlackElo "2358"]
[Result "0-1"]
[Round "7"]
[TimeControl "180+1"]
[Date "2023.08.15"]
[WhiteClock "0:00:00"]
[BlackClock "0:00:03"]
[Board "109"]

1. e4 {[%clk 0:03:00]}  c6 {[%clk 0:02:58]} 2. d4 {[%clk 0:02:58]}  d5 {[%clk 0:02:57]} 3. Nc3 {[%clk 0:02:58]}  dxe4 {[%clk 0:02:55]} 4. Nxe4 {[%clk 0:02:58]}  Nf6 {[%clk 0:02:56]} 5. Ng5 {[%clk 0:02:56]}  Bf5 {[%clk 0:02:46]} 6. Bc4 {[%clk 0:02:51]}  e6 {[%clk 0:02:46]} 7. N1f3 {[%clk 0:02:51]}  h6 {[%clk 0:02:42]} 8. Nxf7 {[%clk 0:02:49]}  Kxf7 {[%clk 0:02:37]} 9. Ne5+ {[%clk 0:02:49]}  Ke8 {[%clk 0:02:30]} 10. Qe2 {[%clk 0:02:05]}  Bd6 {[%clk 0:02:22]} 11. Bf4 {[%clk 0:01:55]}  g5 {[%clk 0:01:58]} 12. Bd2 {[%clk 0:01:43]}  Qe7 {[%clk 0:01:54]} 13. O-O-O {[%clk 0:01:34]}  Nbd7 {[%clk 0:01:49]} 14. f3 {[%clk 0:01:28]}  Bxe5 {[%clk 0:01:45]} 15. dxe5 {[%clk 0:01:27]}  Nd5 {[%clk 0:01:45]} 16. g4 {[%clk 0:01:26]}  Bg6 {[%clk 0:01:41]} 17. h4 {[%clk 0:01:27]}  Kf7 {[%clk 0:01:25]} 18. f4 {[%clk 0:01:20]}  gxf4 {[%clk 0:01:07]} 19. Rdf1 {[%clk 0:01:02]}  Raf8 {[%clk 0:01:05]} 20. h5 {[%clk 0:00:54]}  Bh7 {[%clk 0:01:00]} 21. Bxd5 {[%clk 0:00:52]}  cxd5 {[%clk 0:00:53]} 22. Bxf4 {[%clk 0:00:50]}  Kg7 {[%clk 0:00:48]} 23. Qe3 {[%clk 0:00:49]}  Be4 {[%clk 0:00:45]} 24. Rhg1 {[%clk 0:00:46]}  Qc5 {[%clk 0:00:44]} 25. Qd2 {[%clk 0:00:43]}  b5 {[%clk 0:00:31]} 26. g5 {[%clk 0:00:42]}  hxg5 {[%clk 0:00:23]} 27. Bxg5 {[%clk 0:00:28]}  Kh7 {[%clk 0:00:22]} 28. Be3 {[%clk 0:00:19]}  Qe7 {[%clk 0:00:18]} 29. Re1 {[%clk 0:00:14]}  Nxe5 {[%clk 0:00:16]} 30. h6 {[%clk 0:00:14]}  Nf3 {[%clk 0:00:16]} 31. Rg7+ {[%clk 0:00:14]}  Qxg7 {[%clk 0:00:15]} 32. hxg7 {[%clk 0:00:15]}  Nxd2 {[%clk 0:00:15]} 33. gxh8=Q+ {[%clk 0:00:09]}  Kxh8 {[%clk 0:00:14]} 34. Kxd2 {[%clk 0:00:08]}  Rc8 {[%clk 0:00:13]} 35. c3 {[%clk 0:00:08]}  a6 {[%clk 0:00:13]} 36. Bd4+ {[%clk 0:00:08]}  Kg8 {[%clk 0:00:13]} 37. Rg1+ {[%clk 0:00:08]}  Kf8 {[%clk 0:00:12]} 38. Ke3 {[%clk 0:00:08]}  Ke7 {[%clk 0:00:11]} 39. Be5 {[%clk 0:00:04]}  Rf8 {[%clk 0:00:09]} 40. Rg7+ {[%clk 0:00:04]}  Rf7 {[%clk 0:00:09]} 41. Rg8 {[%clk 0:00:03]}  Rf3+ {[%clk 0:00:06]} 42. Kd4 {[%clk 0:00:04]}  Rd3+ {[%clk 0:00:04]} 43. Kc5 {[%clk 0:00:04]}  Rd2 {[%clk 0:00:04]} 44. Rg7+ {[%clk 0:00:04]}  Kf8 {[%clk 0:00:04]} 45. b4 {[%clk 0:00:02]}  Rxa2 {[%clk 0:00:03]} 46. Kd6 {[%clk 0:00:02]}  Bf5 {[%clk 0:00:03]} 47. Ra7 {[%clk 0:00:00]}  Rc2 {[%clk 0:00:03]} 0-1


[Site "https://www.chess.com"]

[Event "Titled Tuesday Blitz August 15 Early 2023"]
[White "Nithyalakshmi, Sivanesan"]
[Black "Tikhonov, Viacheslav"]
[WhiteFideId "5706955"]
[BlackFideId "44196407"]
[WhiteElo "2349"]
[BlackElo "2511"]
[Result "0-1"]
[Round "7"]
[TimeControl "180+1"]
[Date "2023.08.15"]
[WhiteClock "0:00:01"]
[BlackClock "0:01:16"]
[Board "112"]

1. e4 {[%clk 0:03:00]}  c5 {[%clk 0:02:59]} 2. Nc3 {[%clk 0:03:00]}  Nc6 {[%clk 0:02:59]} 3. Bb5 {[%clk 0:02:59]}  Nd4 {[%clk 0:02:59]} 4. Nf3 {[%clk 0:02:59]}  e6 {[%clk 0:02:59]} 5. O-O {[%clk 0:02:40]}  a6 {[%clk 0:02:58]} 6. Bd3 {[%clk 0:02:37]}  Nc6 {[%clk 0:02:58]} 7. b3 {[%clk 0:02:36]}  g5 {[%clk 0:02:57]} 8. Bb2 {[%clk 0:02:26]}  Bg7 {[%clk 0:02:57]} 9. a4 {[%clk 0:02:13]}  g4 {[%clk 0:02:56]} 10. Ne1 {[%clk 0:02:12]}  h5 {[%clk 0:02:55]} 11. Bc4 {[%clk 0:02:04]}  Nf6 {[%clk 0:02:50]} 12. Qe2 {[%clk 0:01:53]}  Qc7 {[%clk 0:02:35]} 13. Qe3 {[%clk 0:01:50]}  Qd6 {[%clk 0:02:26]} 14. Nd3 {[%clk 0:01:38]}  Bh6 {[%clk 0:02:08]} 15. Qxc5 {[%clk 0:01:37]}  Qxc5 {[%clk 0:02:08]} 16. Nxc5 {[%clk 0:01:37]}  Bxd2 {[%clk 0:02:05]} 17. Ne2 {[%clk 0:01:24]}  Bg5 {[%clk 0:02:04]} 18. f4 {[%clk 0:01:20]}  gxf3 {[%clk 0:02:02]} 19. Rxf3 {[%clk 0:01:20]}  Rh6 {[%clk 0:01:58]} 20. Raf1 {[%clk 0:01:19]}  Ke7 {[%clk 0:01:54]} 21. e5 {[%clk 0:01:15]}  Ng4 {[%clk 0:01:41]} 22. Rxf7+ {[%clk 0:01:13]}  Kd8 {[%clk 0:01:42]} 23. Ne4 {[%clk 0:01:05]}  Be3+ {[%clk 0:01:39]} 24. Kh1 {[%clk 0:01:03]}  Ngxe5 {[%clk 0:01:37]} 25. Rf8+ {[%clk 0:00:49]}  Kc7 {[%clk 0:01:36]} 26. Ba3 {[%clk 0:00:43]}  d5 {[%clk 0:01:31]} 27. Bd6+ {[%clk 0:00:22]}  Kb6 {[%clk 0:01:32]} 28. a5+ {[%clk 0:00:04]}  Kxa5 {[%clk 0:01:30]} 29. b4+ {[%clk 0:00:01]}  Kb6 {[%clk 0:01:25]} 30. Bc5+ {[%clk 0:00:01]}  Kc7 {[%clk 0:01:25]} 31. Bd6+ {[%clk 0:00:01]}  Kd7 {[%clk 0:01:25]} 32. Bc5 {[%clk 0:00:02]}  dxe4 {[%clk 0:01:19]} 33. Rd1+ {[%clk 0:00:02]}  Kc7 {[%clk 0:01:19]} 34. Bd6+ {[%clk 0:00:02]}  Kb6 {[%clk 0:01:20]} 35. Bxe5 {[%clk 0:00:01]}  Nxe5 {[%clk 0:01:19]} 36. Rd6+ {[%clk 0:00:02]}  Ka7 {[%clk 0:01:18]} 37. Rdd8 {[%clk 0:00:02]}  Nxc4 {[%clk 0:01:17]} 38. Rxc8 {[%clk 0:00:02]}  Rxc8 {[%clk 0:01:18]} 39. Rxc8 {[%clk 0:00:02]}  Rf6 {[%clk 0:01:19]} 40. h3 {[%clk 0:00:02]}  Nd6 {[%clk 0:01:16]} 41. Kh2 {[%clk 0:00:01]}  Nxc8 {[%clk 0:01:16]} 0-1


[Site "https://www.chess.com"]

[Event "Titled Tuesday Blitz August 15 Early 2023"]
[White "Lehtosaari, Mauri"]
[Black "Lopez Gracia, Fernando"]
[WhiteFideId "501999"]
[BlackFideId "2207184"]
[WhiteElo "2510"]
[BlackElo "2355"]
[Result "1-0"]
[Round "7"]
[TimeControl "180+1"]
[Date "2023.08.15"]
[WhiteClock "0:00:06"]
[BlackClock "0:00:03"]
[Board "113"]

1. d4 {[%clk 0:02:56]}  Nf6 {[%clk 0:02:59]} 2. Nf3 {[%clk 0:02:55]}  e6 {[%clk 0:02:59]} 3. Bg5 {[%clk 0:02:55]}  d5 {[%clk 0:02:58]} 4. Nbd2 {[%clk 0:02:55]}  Be7 {[%clk 0:02:57]} 5. e3 {[%clk 0:02:55]}  Nbd7 {[%clk 0:02:57]} 6. Bd3 {[%clk 0:02:55]}  b6 {[%clk 0:02:57]} 7. c3 {[%clk 0:02:54]}  Bb7 {[%clk 0:02:58]} 8. O-O {[%clk 0:02:53]}  Ne4 {[%clk 0:02:58]} 9. Bxe7 {[%clk 0:02:51]}  Qxe7 {[%clk 0:02:58]} 10. a4 {[%clk 0:02:51]}  c5 {[%clk 0:02:54]} 11. a5 {[%clk 0:02:50]}  O-O {[%clk 0:02:50]} 12. Bb5 {[%clk 0:02:38]}  Nd6 {[%clk 0:02:05]} 13. Bxd7 {[%clk 0:02:19]}  Qxd7 {[%clk 0:02:03]} 14. Ne5 {[%clk 0:02:19]}  Qe7 {[%clk 0:01:57]} 15. a6 {[%clk 0:02:16]}  Bc8 {[%clk 0:01:57]} 16. f4 {[%clk 0:02:09]}  f6 {[%clk 0:01:47]} 17. Nd3 {[%clk 0:02:06]}  Ne4 {[%clk 0:01:41]} 18. Nxe4 {[%clk 0:01:59]}  dxe4 {[%clk 0:01:41]} 19. Nf2 {[%clk 0:02:00]}  f5 {[%clk 0:01:39]} 20. Qb3 {[%clk 0:01:38]}  Rd8 {[%clk 0:01:27]} 21. Rfd1 {[%clk 0:01:30]}  Bd7 {[%clk 0:01:21]} 22. Rd2 {[%clk 0:01:16]}  Bc6 {[%clk 0:01:14]} 23. Rad1 {[%clk 0:00:47]}  cxd4 {[%clk 0:01:09]} 24. Rxd4 {[%clk 0:00:45]}  Bd5 {[%clk 0:01:01]} 25. c4 {[%clk 0:00:42]}  Bc6 {[%clk 0:01:00]} 26. Qc3 {[%clk 0:00:42]}  Kf7 {[%clk 0:00:55]} 27. b4 {[%clk 0:00:39]}  Rac8 {[%clk 0:00:52]} 28. Nh3 {[%clk 0:00:36]}  h6 {[%clk 0:00:52]} 29. Nf2 {[%clk 0:00:36]}  Rxd4 {[%clk 0:00:40]} 30. Rxd4 {[%clk 0:00:34]}  Bb5 {[%clk 0:00:36]} 31. Qb3 {[%clk 0:00:30]}  Bxa6 {[%clk 0:00:35]} 32. g4 {[%clk 0:00:29]}  g6 {[%clk 0:00:31]} 33. b5 {[%clk 0:00:20]}  Bb7 {[%clk 0:00:30]} 34. Qd1 {[%clk 0:00:19]}  Rc7 {[%clk 0:00:26]} 35. Qd2 {[%clk 0:00:13]}  Bc8 {[%clk 0:00:25]} 36. gxf5 {[%clk 0:00:13]}  exf5 {[%clk 0:00:24]} 37. Kf1 {[%clk 0:00:12]}  Rd7 {[%clk 0:00:24]} 38. Rxd7 {[%clk 0:00:12]}  Qxd7 {[%clk 0:00:25]} 39. Qc3 {[%clk 0:00:12]}  Qe7 {[%clk 0:00:24]} 40. Qh8 {[%clk 0:00:11]}  Be6 {[%clk 0:00:23]} 41. Qxh6 {[%clk 0:00:09]}  Bxc4+ {[%clk 0:00:22]} 42. Kg2 {[%clk 0:00:10]}  Qf6 {[%clk 0:00:20]} 43. Nh3 {[%clk 0:00:09]}  Qg7 {[%clk 0:00:14]} 44. Ng5+ {[%clk 0:00:08]}  Kg8 {[%clk 0:00:13]} 45. Qh4 {[%clk 0:00:07]}  Qb2+ {[%clk 0:00:13]} 46. Kg3 {[%clk 0:00:07]}  Qg7 {[%clk 0:00:13]} 47. Qh3 {[%clk 0:00:06]}  Bxb5 {[%clk 0:00:11]} 48. Qg2 {[%clk 0:00:06]}  Bd3 {[%clk 0:00:10]} 49. Qa2+ {[%clk 0:00:06]}  Kh8 {[%clk 0:00:07]} 50. Qe6 {[%clk 0:00:05]}  Qg8 {[%clk 0:00:04]} 51. Qf6+ {[%clk 0:00:05]}  Qg7 {[%clk 0:00:04]} 52. Qd8+ {[%clk 0:00:05]}  Qg8 {[%clk 0:00:03]} 53. Qc7 {[%clk 0:00:05]}  Qg7 {[%clk 0:00:03]} 54. Qb8+ {[%clk 0:00:06]}  Qg8 {[%clk 0:00:03]} 55. Qxa7 {[%clk 0:00:06]}  b5 {[%clk 0:00:04]} 56. Qb7 {[%clk 0:00:05]}  Bc4 {[%clk 0:00:03]} 57. h4 {[%clk 0:00:04]}  Qg7 {[%clk 0:00:04]} 58. Qb8+ {[%clk 0:00:04]}  Qg8 {[%clk 0:00:04]} 59. Qe5+ {[%clk 0:00:04]}  Qg7 {[%clk 0:00:05]} 60. Qe8+ {[%clk 0:00:05]}  Qg8 {[%clk 0:00:05]} 61. Qd7 {[%clk 0:00:05]}  Qg7 {[%clk 0:00:05]} 62. Qc8+ {[%clk 0:00:05]}  Qg8 {[%clk 0:00:06]} 63. Qb7 {[%clk 0:00:05]}  Qg7 {[%clk 0:00:06]} 64. Qb6 {[%clk 0:00:06]}  Qg8 {[%clk 0:00:04]} 65. h5 {[%clk 0:00:06]}  gxh5 {[%clk 0:00:04]} 66. Qh6+ {[%clk 0:00:05]}  Qh7 {[%clk 0:00:03]} 67. Qxh7# {[%clk 0:00:06]} 1-0


[Site "https://www.chess.com"]

[Event "Titled Tuesday Blitz August 15 Early 2023"]
[White "FromTexas54"]
[Black "Jahnz, Fabian"]
[BlackFideId "4653300"]
[WhiteElo "2501"]
[BlackElo "2348"]
[Result "1-0"]
[Round "7"]
[TimeControl "180+1"]
[Date "2023.08.15"]
[WhiteClock "0:01:45"]
[BlackClock "0:01:35"]
[Board "114"]

1. e4 {[%clk 0:03:00]}  c6 {[%clk 0:02:59]} 2. c4 {[%clk 0:03:00]}  d5 {[%clk 0:03:00]} 3. cxd5 {[%clk 0:03:01]}  cxd5 {[%clk 0:03:01]} 4. exd5 {[%clk 0:03:02]}  Nf6 {[%clk 0:03:01]} 5. Nc3 {[%clk 0:03:02]}  Nbd7 {[%clk 0:02:53]} 6. Bc4 {[%clk 0:03:02]}  g6 {[%clk 0:02:52]} 7. d3 {[%clk 0:03:02]}  Bg7 {[%clk 0:02:53]} 8. Nf3 {[%clk 0:03:03]}  O-O {[%clk 0:02:53]} 9. O-O {[%clk 0:03:03]}  Nb6 {[%clk 0:02:51]} 10. Qb3 {[%clk 0:03:02]}  h6 {[%clk 0:02:45]} 11. Re1 {[%clk 0:03:02]}  Bg4 {[%clk 0:02:43]} 12. Ne5 {[%clk 0:03:01]}  Bf5 {[%clk 0:02:37]} 13. h3 {[%clk 0:02:19]}  Rc8 {[%clk 0:02:33]} 14. a4 {[%clk 0:02:12]}  Nfd7 {[%clk 0:02:03]} 15. Nxd7 {[%clk 0:02:04]}  Nxd7 {[%clk 0:02:02]} 16. Qxb7 {[%clk 0:01:58]}  Nc5 {[%clk 0:02:02]} 17. Qxa7 {[%clk 0:01:56]}  Nxd3 {[%clk 0:02:02]} 18. Bxd3 {[%clk 0:01:55]}  Bxd3 {[%clk 0:02:03]} 19. Qxe7 {[%clk 0:01:51]}  Bxc3 {[%clk 0:01:55]} 20. bxc3 {[%clk 0:01:46]}  Qxd5 {[%clk 0:01:49]} 21. Bxh6 {[%clk 0:01:44]}  Rfe8 {[%clk 0:01:44]} 22. Qf6 {[%clk 0:01:44]}  Rxe1+ {[%clk 0:01:35]} 23. Rxe1 {[%clk 0:01:45]} 1-0


[Site "https://www.chess.com"]

[Event "Titled Tuesday Blitz August 15 Early 2023"]
[White "FunnyDuck66"]
[Black "Ziatdinov, Raset"]
[BlackFideId "2015323"]
[WhiteElo "2501"]
[BlackElo "2348"]
[Result "1-0"]
[Round "7"]
[TimeControl "180+1"]
[Date "2023.08.15"]
[WhiteClock "0:02:09"]
[BlackClock "0:00:18"]
[Board "115"]

1. d4 {[%clk 0:03:00]}  Nf6 {[%clk 0:02:59]} 2. Nf3 {[%clk 0:03:00]}  g6 {[%clk 0:02:59]} 3. Bg5 {[%clk 0:03:01]}  Bg7 {[%clk 0:02:59]} 4. Nbd2 {[%clk 0:03:01]}  d6 {[%clk 0:02:59]} 5. c3 {[%clk 0:03:00]}  O-O {[%clk 0:02:59]} 6. e4 {[%clk 0:02:58]}  h6 {[%clk 0:02:58]} 7. Bh4 {[%clk 0:02:59]}  Nc6 {[%clk 0:02:55]} 8. Bd3 {[%clk 0:02:58]}  e5 {[%clk 0:02:55]} 9. dxe5 {[%clk 0:02:59]}  dxe5 {[%clk 0:02:56]} 10. Qc2 {[%clk 0:02:59]}  Be6 {[%clk 0:02:53]} 11. O-O {[%clk 0:02:57]}  g5 {[%clk 0:02:51]} 12. Bg3 {[%clk 0:02:57]}  Nh5 {[%clk 0:02:51]} 13. Rfe1 {[%clk 0:02:57]}  Nxg3 {[%clk 0:02:51]} 14. hxg3 {[%clk 0:02:57]}  Qe7 {[%clk 0:02:47]} 15. Nc4 {[%clk 0:02:57]}  Rad8 {[%clk 0:02:47]} 16. Ne3 {[%clk 0:02:57]}  Qf6 {[%clk 0:02:35]} 17. Bc4 {[%clk 0:02:42]}  Ne7 {[%clk 0:02:24]} 18. Bxe6 {[%clk 0:02:40]}  Qxe6 {[%clk 0:02:23]} 19. Rad1 {[%clk 0:02:39]}  c6 {[%clk 0:02:23]} 20. c4 {[%clk 0:02:36]}  Qg6 {[%clk 0:01:57]} 21. g4 {[%clk 0:02:30]}  h5 {[%clk 0:01:50]} 22. c5 {[%clk 0:02:27]}  hxg4 {[%clk 0:01:47]} 23. Nxg4 {[%clk 0:02:27]}  Qe6 {[%clk 0:01:44]} 24. Ne3 {[%clk 0:02:27]}  Bh6 {[%clk 0:01:30]} 25. Nh2 {[%clk 0:02:22]}  Bg7 {[%clk 0:00:48]} 26. Nhg4 {[%clk 0:02:22]}  Kh7 {[%clk 0:00:44]} 27. g3 {[%clk 0:02:18]}  Kg6 {[%clk 0:00:44]} 28. Kg2 {[%clk 0:02:13]}  Rh8 {[%clk 0:00:44]} 29. Qc4 {[%clk 0:02:12]}  Qxc4 {[%clk 0:00:39]} 30. Nxc4 {[%clk 0:02:13]}  f6 {[%clk 0:00:27]} 31. Nd6 {[%clk 0:02:13]}  b6 {[%clk 0:00:26]} 32. b4 {[%clk 0:02:13]}  Rd7 {[%clk 0:00:25]} 33. Nf5 {[%clk 0:02:10]}  Rhd8 {[%clk 0:00:18]} 34. Nxe7+ {[%clk 0:02:09]} 1-0


[Site "https://www.chess.com"]

[Event "Titled Tuesday Blitz August 15 Early 2023"]
[White "Kiselev, Pavel"]
[Black "arenal72"]
[WhiteFideId "4191102"]
[WhiteElo "2335"]
[BlackElo "2492"]
[Result "0-1"]
[Round "7"]
[TimeControl "180+1"]
[Date "2023.08.15"]
[WhiteClock "0:00:02"]
[BlackClock "0:00:10"]
[Board "116"]

1. Nf3 {[%clk 0:03:00]}  d5 {[%clk 0:02:55]} 2. c4 {[%clk 0:02:59]}  e6 {[%clk 0:02:54]} 3. d4 {[%clk 0:02:59]}  a6 {[%clk 0:02:51]} 4. e3 {[%clk 0:02:58]}  Nf6 {[%clk 0:02:48]} 5. Nc3 {[%clk 0:02:58]}  dxc4 {[%clk 0:02:48]} 6. Bxc4 {[%clk 0:02:57]}  b5 {[%clk 0:02:49]} 7. Bb3 {[%clk 0:02:57]}  Bb7 {[%clk 0:02:49]} 8. O-O {[%clk 0:02:56]}  Nbd7 {[%clk 0:02:49]} 9. Ne5 {[%clk 0:02:54]}  c5 {[%clk 0:02:48]} 10. Nxd7 {[%clk 0:02:54]}  Qxd7 {[%clk 0:02:46]} 11. dxc5 {[%clk 0:02:54]}  Bxc5 {[%clk 0:02:45]} 12. Qxd7+ {[%clk 0:02:50]}  Nxd7 {[%clk 0:02:45]} 13. e4 {[%clk 0:02:49]}  Ke7 {[%clk 0:02:44]} 14. Bf4 {[%clk 0:02:47]}  Rhd8 {[%clk 0:02:35]} 15. Kh1 {[%clk 0:02:45]}  Rac8 {[%clk 0:02:34]} 16. f3 {[%clk 0:02:45]}  Nb6 {[%clk 0:02:31]} 17. Rad1 {[%clk 0:02:45]}  f6 {[%clk 0:02:26]} 18. e5 {[%clk 0:02:35]}  b4 {[%clk 0:02:05]} 19. exf6+ {[%clk 0:02:33]}  gxf6 {[%clk 0:02:04]} 20. Ne4 {[%clk 0:02:33]}  Bxe4 {[%clk 0:02:01]} 21. fxe4 {[%clk 0:02:34]}  e5 {[%clk 0:01:57]} 22. Bg3 {[%clk 0:02:33]}  Bd4 {[%clk 0:01:56]} 23. Bh4 {[%clk 0:02:30]}  Rd6 {[%clk 0:01:54]} 24. Rf3 {[%clk 0:02:24]}  Rf8 {[%clk 0:01:49]} 25. h3 {[%clk 0:02:23]}  a5 {[%clk 0:01:45]} 26. g4 {[%clk 0:02:02]}  h6 {[%clk 0:01:37]} 27. Kg2 {[%clk 0:01:50]}  a4 {[%clk 0:01:37]} 28. Bc2 {[%clk 0:01:49]}  Rc6 {[%clk 0:01:37]} 29. Rd2 {[%clk 0:01:31]}  Bxb2 {[%clk 0:01:34]} 30. Bd3 {[%clk 0:01:23]}  Bd4 {[%clk 0:01:22]} 31. Bb5 {[%clk 0:01:11]}  Rc3 {[%clk 0:01:20]} 32. Rxc3 {[%clk 0:01:09]}  bxc3 {[%clk 0:01:19]} 33. Rc2 {[%clk 0:01:07]}  a3 {[%clk 0:01:10]} 34. Be1 {[%clk 0:01:07]}  Rc8 {[%clk 0:01:09]} 35. Kf3 {[%clk 0:01:05]}  Rc5 {[%clk 0:01:09]} 36. Ba6 {[%clk 0:01:02]}  Na4 {[%clk 0:01:04]} 37. Ke2 {[%clk 0:01:00]}  Nb2 {[%clk 0:01:04]} 38. Bb7 {[%clk 0:00:56]}  Kf7 {[%clk 0:01:03]} 39. Bd5+ {[%clk 0:00:56]}  Kg6 {[%clk 0:01:03]} 40. Be6 {[%clk 0:00:43]}  Na4 {[%clk 0:00:35]} 41. Kd3 {[%clk 0:00:33]}  Rb5 {[%clk 0:00:32]} 42. Bd5 {[%clk 0:00:25]}  Rb1 {[%clk 0:00:26]} 43. Bf2 {[%clk 0:00:14]}  Nb2+ {[%clk 0:00:21]} 44. Ke2 {[%clk 0:00:14]}  Rh1 {[%clk 0:00:15]} 45. Kf3 {[%clk 0:00:07]}  Rxh3+ {[%clk 0:00:13]} 46. Kg2 {[%clk 0:00:07]}  Rd3 {[%clk 0:00:12]} 47. Be6 {[%clk 0:00:04]}  Rd2 {[%clk 0:00:12]} 48. Bf5+ {[%clk 0:00:04]}  Kg5 {[%clk 0:00:11]} 49. Rxd2 {[%clk 0:00:03]}  cxd2 {[%clk 0:00:11]} 50. Bxd4 {[%clk 0:00:03]}  exd4 {[%clk 0:00:10]} 51. Kf3 {[%clk 0:00:02]}  d1=Q+ {[%clk 0:00:10]} 0-1


[Site "https://www.chess.com"]